fUST/lending_fUST_20260605
["ID","MTS","AMOUNT","RATE_DAILY","PERIOD"]
[424100476,1780589450000,-377.79805087,0.00014794,2]
[424100481,1780589450000,-500.0,0.00014794,2]
[424100480,1780589450000,-500.0,0.00014794,2]
[424100489,1780589450000,-500.0,0.00014794,2]
[424100484,1780589450000,-500.0,0.00014794,2]
[424100483,1780589450000,-1024.0,0.00014794,2]
[424100485,1780589450000,-500.0,0.00014794,2]
[424100486,1780589450000,-500.0,0.00014794,2]
[424100488,1780589450000,-500.0,0.00014794,2]
[424100487,1780589450000,-500.0,0.00014794,2]
[424100490,1780589450000,-500.0,0.00014794,2]
[424100491,1780589450000,-500.0,0.00014794,2]
[424100493,1780589450000,-500.0,0.00014794,2]
[424100492,1780589450000,-765.44,0.00014794,2]
[424100494,1780589450000,-876.86487773,0.00014794,2]
[424100469,1780589450000,-526.21,0.00014794,2]
[424100479,1780589450000,-500.0,0.00014794,2]
[424100467,1780589450000,-567.5,0.00014794,2]
[424100454,1780589450000,-500.0,0.00014794,2]
[424100464,1780589450000,-571.97,0.00014794,2]
[424100495,1780589450000,-500.0,0.00014794,2]
[424100442,1780589450000,-500.0,0.00014794,2]
[424100441,1780589450000,-500.0,0.00014794,2]
[424100443,1780589450000,-2201.03,0.00014794,2]
[424100440,1780589450000,-500.0,0.00014794,2]
[424100444,1780589450000,-1791.1,0.00014794,2]
[424100446,1780589450000,-500.0,0.00014794,2]
[424100449,1780589450000,-500.0,0.00014794,2]
[424100456,1780589450000,-500.0,0.00014794,2]
[424100447,1780589450000,-1019.56,0.00014794,2]
[424100445,1780589450000,-589.99,0.00014794,2]
[424100455,1780589450000,-500.0,0.00014794,2]
[424100465,1780589450000,-500.0,0.00014794,2]
[424100450,1780589450000,-500.0,0.00014794,2]
[424100448,1780589450000,-500.0,0.00014794,2]
[424100452,1780589450000,-889.78,0.00014794,2]
[424100453,1780589450000,-500.0,0.00014794,2]
[424100458,1780589450000,-416.44912723,0.00014794,2]
[424100468,1780589450000,-500.0,0.00014794,2]
[424100457,1780589450000,-500.0,0.00014794,2]
[424100461,1780589450000,-514.78,0.00014794,2]
[424100459,1780589450000,-2280.2,0.00014794,2]
[424100460,1780589450000,-500.0,0.00014794,2]
[424100463,1780589450000,-500.0,0.00014794,2]
[424100462,1780589450000,-500.0,0.00014794,2]
[424100466,1780589450000,-728.73,0.00014794,2]
[424100451,1780589450000,-1000.0,0.00014794,2]
[424100496,1780589450000,-12161.64,0.00014794,2]
[424100497,1780589450000,-273.91187721,0.00014794,2]
[424100498,1780589450000,-500.0,0.00014794,2]
[424100530,1780589450000,-500.0,0.00014794,2]
[424100532,1780589450000,-503.36355276,0.00014794,2]
[424100524,1780589450000,-500.0,0.00014794,2]
[424100528,1780589450000,-500.0,0.00014794,2]
[424100527,1780589450000,-500.0,0.00014794,2]
[424100535,1780589450000,-500.0,0.00014794,2]
[424100531,1780589450000,-500.0,0.00014794,2]
[424100536,1780589450000,-151.0,0.00014794,2]
[424100538,1780589450000,-151.0,0.00014794,2]
[424100547,1780589450000,-151.0,0.000148,2]
[424100540,1780589450000,-2231.45,0.00014794,2]
[424100537,1780589450000,-500.0,0.00014794,2]
[424100529,1780589450000,-1127.29,0.00014794,2]
[424100548,1780589450000,-151.0,0.000149,2]
[424100542,1780589450000,-500.0,0.00014794,2]
[424100546,1780589450000,-500.0,0.00014794,2]
[424100544,1780589450000,-500.0,0.00014794,2]
[424100545,1780589450000,-500.0,0.00014794,2]
[424100543,1780589450000,-151.00000001,0.00014794,2]
[424100550,1780589450000,-526.28917432,0.00014997,2]
[424100549,1780589450000,-10082.36423193,0.000149,2]
[424100554,1780589450000,-151.0,0.00015,2]
[424100551,1780589450000,-1000.0,0.00015,2]
[424100553,1780589450000,-10082.36423193,0.00015,2]
[424100552,1780589450000,-1662.70952982,0.00015,2]
[424100555,1780589450000,-1240.1086,0.00015068,2]
[424100541,1780589450000,-151.0,0.00014794,2]
[424100526,1780589450000,-566.51,0.00014794,2]
[424100539,1780589450000,-2288.73,0.00014794,2]
[424100534,1780589450000,-500.0,0.00014794,2]
[424100533,1780589450000,-3183.02,0.00014794,2]
[424100499,1780589450000,-214.44596564,0.00014794,2]
[424100501,1780589450000,-500.0,0.00014794,2]
[424100511,1780589450000,-578.01,0.00014794,2]
[424100512,1780589450000,-500.0,0.00014794,2]
[424100508,1780589450000,-1424.81,0.00014794,2]
[424100503,1780589450000,-676.34,0.00014794,2]
[424100505,1780589450000,-3210.41,0.00014794,2]
[424100502,1780589450000,-500.0,0.00014794,2]
[424100506,1780589450000,-923.32,0.00014794,2]
[424100509,1780589450000,-500.0,0.00014794,2]
[424100500,1780589450000,-502.72706318,0.00014794,2]
[424100510,1780589450000,-521.51,0.00014794,2]
[424100504,1780589450000,-500.0,0.00014794,2]
[424100507,1780589450000,-500.0,0.00014794,2]
[424100525,1780589450000,-1047.04,0.00014794,2]
[424100522,1780589450000,-1040.92,0.00014794,2]
[424100520,1780589450000,-500.0,0.00014794,2]
[424100518,1780589450000,-500.0,0.00014794,2]
[424100523,1780589450000,-503.66473125,0.00014794,2]
[424100519,1780589450000,-500.0,0.00014794,2]
[424100521,1780589450000,-500.0,0.00014794,2]
[424100516,1780589450000,-500.0,0.00014794,2]
[424100514,1780589450000,-1987.77,0.00014794,2]
[424100515,1780589450000,-500.0,0.00014794,2]
[424100513,1780589450000,-500.0,0.00014794,2]
[424100517,1780589450000,-2341.85,0.00014794,2]
[424100611,1780589451000,-500.0,0.00015068,2]
[424100593,1780589451000,-1000.0,0.00015068,2]
[424100596,1780589451000,-500.0,0.00015068,2]
[424100594,1780589451000,-889.78,0.00015068,2]
[424100597,1780589451000,-500.0,0.00015068,2]
[424100595,1780589451000,-500.0,0.00015068,2]
[424100590,1780589451000,-500.0,0.00015068,2]
[424100592,1780589451000,-500.0,0.00015068,2]
[424100591,1780589451000,-500.0,0.00015068,2]
[424100598,1780589451000,-185.17233505,0.00015068,2]
[424100589,1780589451000,-1019.56,0.00015068,2]
[424100601,1780589451000,-432.71574481,0.00015068,2]
[424100599,1780589451000,-500.0,0.00015068,2]
[424100600,1780589451000,-2280.2,0.00015068,2]
[424100614,1780589451000,-350.10708718,0.00015068,2]
[424100603,1780589451000,-500.0,0.00015068,2]
[424100612,1780589451000,-654.61,0.00015068,2]
[424100604,1780589451000,-500.0,0.00015068,2]
[424100606,1780589451000,-528.70262495,0.00015068,2]
[424100605,1780589451000,-571.97,0.00015068,2]
[424100609,1780589451000,-500.0,0.00015068,2]
[424100610,1780589451000,-526.21,0.00015068,2]
[424100608,1780589451000,-567.5,0.00015068,2]
[424100607,1780589451000,-728.73,0.00015068,2]
[424100613,1780589451000,-500.0,0.00015068,2]
[424100615,1780589451000,-670.93,0.00015068,2]
[424100618,1780589451000,-500.0,0.00015068,2]
[424100616,1780589451000,-500.0,0.00015068,2]
[424100588,1780589451000,-500.0,0.00015068,2]
[424100602,1780589451000,-514.78,0.00015068,2]
[424100587,1780589451000,-589.99,0.00015068,2]
[424100559,1780589451000,-328.18343708,0.00015068,2]
[424100579,1780589451000,-946.4,0.00015068,2]
[424100560,1780589451000,-765.96,0.00015068,2]
[424100557,1780589451000,-500.0,0.00015068,2]
[424100619,1780589451000,-500.0,0.00015068,2]
[424100556,1780589451000,-505.4995608,0.00015068,2]
[424100558,1780589451000,-500.0,0.00015068,2]
[424100561,1780589451000,-500.0,0.00015068,2]
[424100562,1780589451000,-585.31,0.00015068,2]
[424100571,1780589451000,-222.90745194,0.00015068,2]
[424100563,1780589451000,-500.0,0.00015068,2]
[424100570,1780589451000,-500.0,0.00015068,2]
[424100564,1780589451000,-590.38201324,0.00015068,2]
[424100572,1780589451000,-2515.87,0.00015068,2]
[424100566,1780589451000,-487.25851962,0.00015068,2]
[424100569,1780589451000,-500.0,0.00015068,2]
[424100565,1780589451000,-500.0,0.00015068,2]
[424100573,1780589451000,-500.0,0.00015068,2]
[424100567,1780589451000,-987.12,0.00015068,2]
[424100568,1780589451000,-500.0,0.00015068,2]
[424100575,1780589451000,-500.0,0.00015068,2]
[424100586,1780589451000,-1791.1,0.00015068,2]
[424100583,1780589451000,-500.0,0.00015068,2]
[424100584,1780589451000,-500.0,0.00015068,2]
[424100585,1780589451000,-2201.03,0.00015068,2]
[424100574,1780589451000,-269.7133454,0.00015068,2]
[424100576,1780589451000,-511.22,0.00015068,2]
[424100577,1780589451000,-506.21176593,0.00015068,2]
[424100578,1780589451000,-802.73,0.00015068,2]
[424100582,1780589451000,-500.0,0.00015068,2]
[424100580,1780589451000,-577.42,0.00015068,2]
[424100581,1780589451000,-500.0,0.00015068,2]
[424100620,1780589451000,-1024.0,0.00015068,2]
[424100617,1780589451000,-500.0,0.00015068,2]
[424100621,1780589451000,-500.0,0.00015068,2]
[424100667,1780589451000,-293.05293732,0.00015068,2]
[424100666,1780589451000,-500.0,0.00015068,2]
[424100655,1780589451000,-1040.92,0.00015068,2]
[424100657,1780589451000,-1047.04,0.00015068,2]
[424100658,1780589451000,-566.51,0.00015068,2]
[424100659,1780589451000,-500.0,0.00015068,2]
[424100665,1780589451000,-500.0,0.00015068,2]
[424100662,1780589451000,-500.0,0.00015068,2]
[424100661,1780589451000,-1127.29,0.00015068,2]
[424100660,1780589451000,-500.0,0.00015068,2]
[424100664,1780589451000,-3183.02,0.00015068,2]
[424100663,1780589451000,-276.60719004,0.00015068,2]
[424100668,1780589451000,-2288.73,0.00015068,2]
[424100670,1780589451000,-500.0,0.00015068,2]
[424100656,1780589451000,-500.0,0.00015068,2]
[424100672,1780589451000,-500.0,0.00015068,2]
[424100679,1780589451000,-10082.36423193,0.000152,2]
[424100671,1780589451000,-500.0,0.00015068,2]
[424100675,1780589451000,-150.52,0.000151,2]
[424100673,1780589451000,-500.0,0.00015068,2]
[424100677,1780589451000,-847.0,0.00015162,2]
[424100669,1780589451000,-2231.45,0.00015068,2]
[424100674,1780589451000,-168.809073,0.00015068,2]
[424100676,1780589451000,-824.0,0.00015128,2]
[424100681,1780589451000,-10082.36423193,0.000153,2]
[424100680,1780589451000,-1662.70952982,0.000153,2]
[424100682,1780589451000,-1240.1086,0.00015342,2]
[424100623,1780589451000,-500.0,0.00015068,2]
[424100683,1780589451000,-500.0,0.00015342,2]
[424100684,1780589451000,-500.0,0.00015342,2]
[424100678,1780589451000,-1662.70952982,0.000152,2]
[424100652,1780589451000,-500.0,0.00015068,2]
[424100685,1780589451000,-765.96,0.00015342,2]
[424100653,1780589451000,-500.0,0.00015068,2]
[424100654,1780589451000,-500.0,0.00015068,2]
[424100624,1780589451000,-500.0,0.00015068,2]
[424100622,1780589451000,-500.0,0.00015068,2]
[424100626,1780589451000,-500.0,0.00015068,2]
[424100629,1780589451000,-765.44,0.00015068,2]
[424100627,1780589451000,-500.0,0.00015068,2]
[424100630,1780589451000,-500.0,0.00015068,2]
[424100631,1780589451000,-322.06389345,0.00015068,2]
[424100632,1780589451000,-12161.64,0.00015068,2]
[424100639,1780589451000,-923.32,0.00015068,2]
[424100628,1780589451000,-500.0,0.00015068,2]
[424100633,1780589451000,-500.0,0.00015068,2]
[424100640,1780589451000,-500.0,0.00015068,2]
[424100637,1780589451000,-500.0,0.00015068,2]
[424100625,1780589451000,-500.0,0.00015068,2]
[424100636,1780589451000,-676.34,0.00015068,2]
[424100648,1780589451000,-500.0,0.00015068,2]
[424100646,1780589451000,-500.0,0.00015068,2]
[424100642,1780589451000,-500.0,0.00015068,2]
[424100647,1780589451000,-1987.77,0.00015068,2]
[424100638,1780589451000,-3210.41,0.00015068,2]
[424100644,1780589451000,-578.01,0.00015068,2]
[424100649,1780589451000,-500.0,0.00015068,2]
[424100650,1780589451000,-2341.85,0.00015068,2]
[424100645,1780589451000,-500.0,0.00015068,2]
[424100643,1780589451000,-521.51,0.00015068,2]
[424100641,1780589451000,-1424.81,0.00015068,2]
[424100635,1780589451000,-575.90948379,0.00015068,2]
[424100634,1780589451000,-500.0,0.00015068,2]
[424100651,1780589451000,-500.0,0.00015068,2]
[424100731,1780589452000,-670.93,0.00015342,2]
[424100729,1780589452000,-654.61,0.00015342,2]
[424100728,1780589452000,-500.0,0.00015342,2]
[424100727,1780589452000,-526.21,0.00015342,2]
[424100726,1780589452000,-314.30209448,0.00015342,2]
[424100715,1780589452000,-500.0,0.00015342,2]
[424100725,1780589452000,-567.5,0.00015342,2]
[424100723,1780589452000,-571.97,0.00015342,2]
[424100721,1780589452000,-500.0,0.00015342,2]
[424100716,1780589452000,-500.0,0.00015342,2]
[424100717,1780589452000,-500.0,0.00015342,2]
[424100724,1780589452000,-728.73,0.00015342,2]
[424100722,1780589452000,-500.0,0.00015342,2]
[424100746,1780589452000,-765.44,0.00015342,2]
[424100733,1780589452000,-500.0,0.00015342,2]
[424100730,1780589452000,-500.0,0.00015342,2]
[424100736,1780589452000,-1024.0,0.00015342,2]
[424100747,1780589452000,-12161.64,0.00015342,2]
[424100734,1780589452000,-500.0,0.00015342,2]
[424100745,1780589452000,-500.0,0.00015342,2]
[424100735,1780589452000,-500.0,0.00015342,2]
[424100737,1780589452000,-500.0,0.00015342,2]
[424100738,1780589452000,-500.0,0.00015342,2]
[424100739,1780589452000,-500.0,0.00015342,2]
[424100741,1780589452000,-500.0,0.00015342,2]
[424100740,1780589452000,-500.0,0.00015342,2]
[424100714,1780589452000,-889.78,0.00015342,2]
[424100732,1780589452000,-500.0,0.00015342,2]
[424100713,1780589452000,-1000.0,0.00015342,2]
[424100699,1780589452000,-946.4,0.00015342,2]
[424100709,1780589452000,-1019.56,0.00015342,2]
[424100691,1780589452000,-500.0,0.00015342,2]
[424100692,1780589452000,-500.0,0.00015342,2]
[424100690,1780589452000,-987.12,0.00015342,2]
[424100689,1780589452000,-475.05657436,0.00015342,2]
[424100744,1780589452000,-500.0,0.00015342,2]
[424100687,1780589452000,-585.31,0.00015342,2]
[424100688,1780589452000,-500.0,0.00015342,2]
[424100686,1780589452000,-500.0,0.00015342,2]
[424100693,1780589452000,-284.88807474,0.00015342,2]
[424100695,1780589452000,-500.0,0.00015342,2]
[424100694,1780589452000,-2515.87,0.00015342,2]
[424100696,1780589452000,-500.0,0.00015342,2]
[424100697,1780589452000,-511.22,0.00015342,2]
[424100707,1780589452000,-589.99,0.00015342,2]
[424100698,1780589452000,-802.73,0.00015342,2]
[424100702,1780589452000,-500.0,0.00015342,2]
[424100701,1780589452000,-500.0,0.00015342,2]
[424100703,1780589452000,-500.0,0.00015342,2]
[424100704,1780589452000,-500.0,0.00015342,2]
[424100706,1780589452000,-1791.1,0.00015342,2]
[424100705,1780589452000,-2201.03,0.00015342,2]
[424100708,1780589452000,-500.0,0.00015342,2]
[424100720,1780589452000,-514.78,0.00015342,2]
[424100718,1780589452000,-500.0,0.00015342,2]
[424100710,1780589452000,-500.0,0.00015342,2]
[424100711,1780589452000,-360.37560562,0.00015342,2]
[424100712,1780589452000,-500.0,0.00015342,2]
[424100719,1780589452000,-2280.2,0.00015342,2]
[424100700,1780589452000,-577.42,0.00015342,2]
[424100742,1780589452000,-463.55012067,0.00015342,2]
[424100800,1780589452000,-765.96,0.00015616,2]
[424100749,1780589452000,-500.0,0.00015342,2]
[424100782,1780589452000,-500.0,0.00015342,2]
[424100781,1780589452000,-2231.45,0.00015342,2]
[424100779,1780589452000,-500.0,0.00015342,2]
[424100788,1780589452000,-3631.0,0.00015432,2]
[424100784,1780589452000,-500.0,0.00015342,2]
[424100785,1780589452000,-500.0,0.00015342,2]
[424100787,1780589452000,-1837.0,0.00015432,2]
[424100786,1780589452000,-1415.0,0.00015432,2]
[424100790,1780589452000,-444.0,0.00015432,2]
[424100789,1780589452000,-928.578,0.00015432,2]
[424100791,1780589452000,-150.52,0.000155,2]
[424100802,1780589452000,-585.31,0.00015616,2]
[424100797,1780589452000,-181.8826,0.00015616,2]
[424100801,1780589452000,-500.0,0.00015616,2]
[424100803,1780589452000,-500.0,0.00015616,2]
[424100794,1780589452000,-1662.70952982,0.000156,2]
[424100796,1780589452000,-1240.1086,0.00015616,2]
[424100792,1780589452000,-1662.70952982,0.000155,2]
[424100795,1780589452000,-10082.36423193,0.000156,2]
[424100799,1780589452000,-500.0,0.00015616,2]
[424100798,1780589452000,-500.0,0.00015616,2]
[424100804,1780589452000,-987.12,0.00015616,2]
[424100805,1780589452000,-500.0,0.00015616,2]
[424100807,1780589452000,-2515.87,0.00015616,2]
[424100808,1780589452000,-500.0,0.00015616,2]
[424100806,1780589452000,-500.0,0.00015616,2]
[424100743,1780589452000,-500.0,0.00015342,2]
[424100780,1780589452000,-2288.73,0.00015342,2]
[424100783,1780589452000,-604.69339734,0.00015342,2]
[424100793,1780589452000,-10082.36423193,0.000155,2]
[424100775,1780589452000,-1127.29,0.00015342,2]
[424100778,1780589452000,-500.0,0.00015342,2]
[424100748,1780589452000,-500.0,0.00015342,2]
[424100757,1780589452000,-521.51,0.00015342,2]
[424100750,1780589452000,-676.34,0.00015342,2]
[424100759,1780589452000,-500.0,0.00015342,2]
[424100761,1780589452000,-1987.77,0.00015342,2]
[424100751,1780589452000,-500.0,0.00015342,2]
[424100752,1780589452000,-3210.41,0.00015342,2]
[424100758,1780589452000,-578.01,0.00015342,2]
[424100756,1780589452000,-500.0,0.00015342,2]
[424100754,1780589452000,-500.0,0.00015342,2]
[424100753,1780589452000,-923.32,0.00015342,2]
[424100755,1780589452000,-1424.81,0.00015342,2]
[424100763,1780589452000,-500.0,0.00015342,2]
[424100760,1780589452000,-500.0,0.00015342,2]
[424100771,1780589452000,-1047.04,0.00015342,2]
[424100773,1780589452000,-500.0,0.00015342,2]
[424100764,1780589452000,-2341.85,0.00015342,2]
[424100772,1780589452000,-566.51,0.00015342,2]
[424100767,1780589452000,-500.0,0.00015342,2]
[424100768,1780589452000,-500.0,0.00015342,2]
[424100765,1780589452000,-500.0,0.00015342,2]
[424100769,1780589452000,-1040.92,0.00015342,2]
[424100770,1780589452000,-500.0,0.00015342,2]
[424100777,1780589452000,-3183.02,0.00015342,2]
[424100776,1780589452000,-500.0,0.00015342,2]
[424100766,1780589452000,-500.0,0.00015342,2]
[424100762,1780589452000,-500.0,0.00015342,2]
[424100774,1780589452000,-500.0,0.00015342,2]
[424100855,1780589453000,-500.0,0.00015616,2]
[424100856,1780589453000,-765.44,0.00015616,2]
[424100846,1780589453000,-500.0,0.00015616,2]
[424100845,1780589453000,-500.0,0.00015616,2]
[424100857,1780589453000,-12161.64,0.00015616,2]
[424100848,1780589453000,-500.0,0.00015616,2]
[424100839,1780589453000,-500.0,0.00015616,2]
[424100854,1780589453000,-500.0,0.00015616,2]
[424100849,1780589453000,-396.90061041,0.00015616,2]
[424100840,1780589453000,-654.61,0.00015616,2]
[424100841,1780589453000,-500.0,0.00015616,2]
[424100850,1780589453000,-500.0,0.00015616,2]
[424100851,1780589453000,-500.0,0.00015616,2]
[424100847,1780589453000,-1024.0,0.00015616,2]
[424100868,1780589453000,-578.01,0.00015616,2]
[424100853,1780589453000,-629.01968435,0.00015616,2]
[424100858,1780589453000,-500.0,0.00015616,2]
[424100859,1780589453000,-500.0,0.00015616,2]
[424100860,1780589453000,-676.34,0.00015616,2]
[424100865,1780589453000,-1424.81,0.00015616,2]
[424100866,1780589453000,-500.0,0.00015616,2]
[424100861,1780589453000,-500.0,0.00015616,2]
[424100869,1780589453000,-500.0,0.00015616,2]
[424100870,1780589453000,-500.0,0.00015616,2]
[424100864,1780589453000,-500.0,0.00015616,2]
[424100862,1780589453000,-3210.41,0.00015616,2]
[424100867,1780589453000,-521.51,0.00015616,2]
[424100863,1780589453000,-923.32,0.00015616,2]
[424100835,1780589453000,-571.97,0.00015616,2]
[424100852,1780589453000,-500.0,0.00015616,2]
[424100837,1780589453000,-567.5,0.00015616,2]
[424100811,1780589453000,-802.73,0.00015616,2]
[424100836,1780589453000,-728.73,0.00015616,2]
[424100809,1780589453000,-500.0,0.00015616,2]
[424100872,1780589453000,-500.0,0.00015616,2]
[424100817,1780589453000,-500.0,0.00015616,2]
[424100810,1780589453000,-511.22,0.00015616,2]
[424100813,1780589453000,-577.42,0.00015616,2]
[424100815,1780589453000,-500.0,0.00015616,2]
[424100812,1780589453000,-946.4,0.00015616,2]
[424100816,1780589453000,-450.93179556,0.00015616,2]
[424100814,1780589453000,-500.0,0.00015616,2]
[424100818,1780589453000,-2201.03,0.00015616,2]
[424100823,1780589453000,-500.0,0.00015616,2]
[424100820,1780589453000,-589.99,0.00015616,2]
[424100827,1780589453000,-500.0,0.00015616,2]
[424100821,1780589453000,-500.0,0.00015616,2]
[424100819,1780589453000,-1791.1,0.00015616,2]
[424100826,1780589453000,-889.78,0.00015616,2]
[424100825,1780589453000,-1000.0,0.00015616,2]
[424100828,1780589453000,-500.0,0.00015616,2]
[424100822,1780589453000,-1019.56,0.00015616,2]
[424100824,1780589453000,-500.0,0.00015616,2]
[424100829,1780589453000,-500.0,0.00015616,2]
[424100830,1780589453000,-500.0,0.00015616,2]
[424100832,1780589453000,-514.78,0.00015616,2]
[424100844,1780589453000,-279.67052735,0.00015616,2]
[424100843,1780589453000,-624.70745563,0.00015616,2]
[424100842,1780589453000,-670.93,0.00015616,2]
[424100834,1780589453000,-500.0,0.00015616,2]
[424100831,1780589453000,-2280.2,0.00015616,2]
[424100833,1780589453000,-500.0,0.00015616,2]
[424100838,1780589453000,-526.21,0.00015616,2]
[424100883,1780589453000,-500.0,0.00015616,2]
[424100882,1780589453000,-566.51,0.00015616,2]
[424100936,1780589453000,-728.73,0.0001589,2]
[424100904,1780589453000,-500.0,0.0001589,2]
[424100911,1780589453000,-511.22,0.0001589,2]
[424100923,1780589453000,-500.0,0.0001589,2]
[424100920,1780589453000,-589.99,0.0001589,2]
[424100912,1780589453000,-802.73,0.0001589,2]
[424100921,1780589453000,-500.0,0.0001589,2]
[424100922,1780589453000,-1019.56,0.0001589,2]
[424100910,1780589453000,-500.0,0.0001589,2]
[424100917,1780589453000,-500.0,0.0001589,2]
[424100915,1780589453000,-500.0,0.0001589,2]
[424100914,1780589453000,-577.42,0.0001589,2]
[424100913,1780589453000,-946.4,0.0001589,2]
[424100919,1780589453000,-1791.1,0.0001589,2]
[424100918,1780589453000,-2201.03,0.0001589,2]
[424100924,1780589453000,-500.0,0.0001589,2]
[424100928,1780589453000,-500.0,0.0001589,2]
[424100925,1780589453000,-1000.0,0.0001589,2]
[424100931,1780589453000,-2280.2,0.0001589,2]
[424100927,1780589453000,-500.0,0.0001589,2]
[424100930,1780589453000,-500.0,0.0001589,2]
[424100926,1780589453000,-889.78,0.0001589,2]
[424100929,1780589453000,-500.0,0.0001589,2]
[424100932,1780589453000,-514.78,0.0001589,2]
[424100933,1780589453000,-445.85528853,0.0001589,2]
[424100934,1780589453000,-500.0,0.0001589,2]
[424100935,1780589453000,-571.97,0.0001589,2]
[424100937,1780589453000,-567.5,0.0001589,2]
[424100873,1780589453000,-500.0,0.00015616,2]
[424100938,1780589453000,-526.21,0.0001589,2]
[424100907,1780589453000,-500.0,0.0001589,2]
[424100905,1780589453000,-987.12,0.0001589,2]
[424100916,1780589453000,-500.0,0.0001589,2]
[424100900,1780589453000,-500.0,0.0001589,2]
[424100871,1780589453000,-1987.77,0.00015616,2]
[424100906,1780589453000,-500.0,0.0001589,2]
[424100880,1780589453000,-369.6973766,0.00015616,2]
[424100878,1780589453000,-500.0,0.00015616,2]
[424100877,1780589453000,-500.0,0.00015616,2]
[424100879,1780589453000,-1040.92,0.00015616,2]
[424100874,1780589453000,-2341.85,0.00015616,2]
[424100876,1780589453000,-500.0,0.00015616,2]
[424100881,1780589453000,-1047.04,0.00015616,2]
[424100884,1780589453000,-500.0,0.00015616,2]
[424100891,1780589453000,-2231.45,0.00015616,2]
[424100889,1780589453000,-184.07361408,0.00015616,2]
[424100890,1780589453000,-2288.73,0.00015616,2]
[424100894,1780589453000,-500.0,0.00015616,2]
[424100893,1780589453000,-500.0,0.00015616,2]
[424100875,1780589453000,-500.0,0.00015616,2]
[424100896,1780589453000,-10082.36423193,0.000158,2]
[424100903,1780589453000,-585.31,0.0001589,2]
[424100902,1780589453000,-500.0,0.0001589,2]
[424100901,1780589453000,-765.96,0.0001589,2]
[424100899,1780589453000,-500.0,0.0001589,2]
[424100909,1780589453000,-500.0,0.0001589,2]
[424100892,1780589453000,-500.0,0.00015616,2]
[424100908,1780589453000,-2515.87,0.0001589,2]
[424100897,1780589453000,-151.09,0.000158,2]
[424100888,1780589453000,-500.0,0.00015616,2]
[424100887,1780589453000,-3183.02,0.00015616,2]
[424100886,1780589453000,-500.0,0.00015616,2]
[424100885,1780589453000,-1127.29,0.00015616,2]
[424100895,1780589453000,-164.0,0.00015726,3]
[424100898,1780589453000,-1311.3977,0.0001589,2]
[424100979,1780589454000,-500.0,0.0001589,2]
[424100981,1780589454000,-500.0,0.0001589,2]
[424100982,1780589454000,-3183.02,0.0001589,2]
[424100977,1780589454000,-566.51,0.0001589,2]
[424100983,1780589454000,-500.0,0.0001589,2]
[424100968,1780589454000,-500.0,0.0001589,2]
[424100967,1780589454000,-1987.77,0.0001589,2]
[424100966,1780589454000,-500.0,0.0001589,2]
[424100965,1780589454000,-500.0,0.0001589,2]
[424100969,1780589454000,-2341.85,0.0001589,2]